Cost Item Category,Cost Item Sub Category (where applicable),Type of Cost Item,Sources of Cost / Pricing Data,Format of Cost Data,Year of  Data,Update Factor,Updated Cost (2000$),Notes/Assumptions
L. Corrective Action,1. Cap,1.1 Soil and Vegetative Cap,RACER 1999,"Capital = 119,843*(area in acres)+17,196",1999,1.025,"Capital = 122,839*(area in acres)+17,626",n/a
L. Corrective Action,1. Cap,1.1 Soil and Vegetative Cap,RACER 1999,"General O&M= 1,492*(area in acres) + 1,167",1999,1.025,"General O&M= 1,529*(area in acres) + 1,196",n/a
L. Corrective Action,1. Cap,1.1 Soil and Vegetative Cap,RACER 1999,"Miscellaneous O&M = 2,615*(area in acres) + 390",1999,1.025,"Miscellaneous O&M = 2,680*(area in acres) + 400",n/a
L. Corrective Action,1. Cap,1.2 Composite Cap for Non-Hazardous Waste (Subtitle D),RACER 1999,"Capital = 314,707*(area in acres)+11,621",1999,1.025,"Capital = 322,575*(area in acres)+11,912",n/a
L. Corrective Action,1. Cap,1.2 Composite Cap for Non-Hazardous Waste (Subtitle D),RACER 1999,"General O&M = 1,089*(area in acres) + 2360",1999,1.025,"General O&M = 1,116*(area in acres) + 2,419",n/a
L. Corrective Action,1. Cap,1.2 Composite Cap for Non-Hazardous Waste (Subtitle D),RACER 1999,"Miscellaneous O&M =  6,583*(area in acres) + 764",1999,1.025,"Miscellaneous O&M = 6,748*(area in acres) + 783",n/a
L. Corrective Action,1. Cap,1.3 Composite Cap for Hazardous Waste (Subtitle C),RACER 1999,"Capital = 373,251*(area in acres)+10,844",1999,1.025,"Capital = 382,582*(area in acres)+11,115",n/a
L. Corrective Action,1. Cap,1.3 Composite Cap for Hazardous Waste (Subtitle C),RACER 1999,"General O&M = 1,498*(area in acres) + 844",1999,1.025,"General O&M = 1,535*(area in acres) + 865",n/a
L. Corrective Action,1. Cap,1.3 Composite Cap for Hazardous Waste (Subtitle C),RACER 1999,"Miscellaneous O&M = 7,793*(area in acres) + 870",1999,1.025,"Miscellaneous O&M = 7,988*(area in acres) + 892",n/a
L. Corrective Action,2. Soil/Waste Removal,2.1 Excavation,"Memo: Costs of the Phase IV LDRs on MGP Wastes, January 1998",$15/ton,1998*,1.05,$16/ton,"* Presumed year of cost data.  The source of cost data did not directly indicate the year the cost data is based upon.  In these cases, a year of data is assumed from the date of the source document or references within the source document."
L. Corrective Action,2. Soil/Waste Removal,2.2 Backfill,RACER 1999.,$9.71/cy,1999,1.025,$9.95/cy,n/a
L. Corrective Action,3. Soil/Waste Treatment,3.1 In-Situ Stabilization,"Memorandum to Paul Borst, EPA/OSW from Kevin Guiney, ICF Incorporated (Jan. 28, 1998), regarding Costs of the Phase IV Land Disposal Restrictions on Manufactured Gas Plant Wastes.  The reference for the in-situ stabilization cost presented in this memorandum is the EPA/OSW document entitled Application of the Phase IV Land Disposal Restrictions to Contaminated Media: Costs, Cost Savings, and Economic Impacts (Jan. 28, 1998)",$54/ton,1997,1.076,$58/ton,n/a
L. Corrective Action,3. Soil/Waste Treatment,3.2. Soil Vapor Extraction,RACER 1999,"See Appendix for cost lookup table as a function of area, depth and soil type.",1999,1.025,"See Appendix for cost lookup table as a function of area, depth and soil type.",n/a
L. Corrective Action,3. Soil/Waste Treatment,3.3. In-Situ Bioremediation,"Memorandum to Paul Borst, EPA/OSW from Kevin Guiney, ICF Incorporated (Jan. 28, 1998), regarding Costs of the Phase IV Land Disposal Restrictions on Manufactured Gas Plant Wastes. ",$67/ton,1998*,1.05,$70/ton,"* Presumed year of cost data.  The source of cost data did not directly indicate the year the cost data is based upon.  In these cases, a year of data is assumed from the date of the source document or references within the source document."
L. Corrective Action,3. Soil/Waste Treatment,3.4 Ex-Situ Bioremediation,"Memorandum to Paul Borst, EPA/OSW from Kevin Guiney, ICF Incorporated (Jan. 28, 1998), regarding Costs of the Phase IV Land Disposal Restrictions on Manufactured Gas Plant Wastes.  The reference for the ex-situ bioremediation cost presented in this memorandum is  EPRI�s Guide to Site Restoration Strategies -- Volume IV: Site Restoration, Revision 1, October 1995.",Landfarming = $41/ton,1995*,1.138,Landfarming = $47/ton,"* Presumed year of cost data.  The source of cost data did not directly indicate the year the cost data is based upon.  In these cases, a year of data is assumed from the date of the source document or references within the source document."
L. Corrective Action,3. Soil/Waste Treatment,3.4 Ex-Situ Bioremediation,"Memorandum to Paul Borst, EPA/OSW from Kevin Guiney, ICF Incorporated (Jan. 28, 1998), regarding Costs of the Phase IV Land Disposal Restrictions on Manufactured Gas Plant Wastes.  The reference for the ex-situ bioremediation cost presented in this memorandum is  EPRI�s Guide to Site Restoration Strategies -- Volume IV: Site Restoration, Revision 1, October 1995.",Solid Phase Bioremediation = $76/ton,1995*,1.138,Solid Phase Bioremediation = $86/ton,"* Presumed year of cost data.  The source of cost data did not directly indicate the year the cost data is based upon.  In these cases, a year of data is assumed from the date of the source document or references within the source document."
L. Corrective Action,3. Soil/Waste Treatment,3.4 Ex-Situ Bioremediation,"Memorandum to Paul Borst, EPA/OSW from Kevin Guiney, ICF Incorporated (Jan. 28, 1998), regarding Costs of the Phase IV Land Disposal Restrictions on Manufactured Gas Plant Wastes.  The reference for the ex-situ bioremediation cost presented in this memorandum is  EPRI�s Guide to Site Restoration Strategies -- Volume IV: Site Restoration, Revision 1, October 1995.",Slurry Phase Bioremediation = $70-$190/ton,1995*,1.138,Slurry Phase Bioremediation = $80-$216/ton,"* Presumed year of cost data.  The source of cost data did not directly indicate the year the cost data is based upon.  In these cases, a year of data is assumed from the date of the source document or references within the source document."
L. Corrective Action,3. Soil/Waste Treatment,3.5 Soil Washing,Racer 1999,"Cost (25 tons/hour) = 78 (LCY) + 541,296",1999,1.025,"Cost (25 tons/hour) = 80 (LCY) + 554,828","LCY = Loose cubic yards
Note: Costs do not include treatment or disposal of remaining fines. "
L. Corrective Action,3. Soil/Waste Treatment,3.5 Soil Washing,Racer 1999,"Cost (50 tons/hour) = 55 (LCY) + 598,863",1999,1.025,"Cost (50 tons/hour) = 56 (LCY) + 613,835","LCY = Loose cubic yards
Note: Costs do not include treatment or disposal of remaining fines. "
L. Corrective Action,3. Soil/Waste Treatment,3.5 Soil Washing,Racer 1999,"Cost (100 tons/hour) = 41 (LCY) + 693,330",1999,1.025,"Cost (100 tons/hour) = 42 (LCY) + 710,663","LCY = Loose cubic yards
Note: Costs do not include treatment or disposal of remaining fines. "
L. Corrective Action,4. Groundwater Removal/Containment,4.1 Groundwater Extraction Wells,Racer 1999,"Depth to Groundwater 20 feet: Capital Cost (per well) = 0.10 Q2 + 23Q + 11,970",1999,1.025,"Depth to Groundwater 20 feet: Capital Cost (per well) = 0.10 Q2 + 24Q + 12,269",Q = gallons per minute
L. Corrective Action,4. Groundwater Removal/Containment,4.1 Groundwater Extraction Wells,Racer 1999,"Depth to Groundwater 20 feet: O&M (per well) = 12Q + 3,815",1999,1.025,"Depth to Groundwater 20 feet: O&M (per well) = 12Q + 3,910",Q = gallons per minute
L. Corrective Action,4. Groundwater Removal/Containment,4.1 Groundwater Extraction Wells,Racer 1999,"Depth to Groundwater 100 feet: Capital Cost (per well) = 81Q + 21,063",1999,1.025,"Depth to Groundwater 100 feet: Capital Cost (per well) = 83Q + 21,590",Q = gallons per minute
L. Corrective Action,4. Groundwater Removal/Containment,4.1 Groundwater Extraction Wells,Racer 1999,"Depth to Groundwater 100 feet: O&M (per well) = 30Q + 3,998",1999,1.025,"Depth to Groundwater 100 feet: O&M (per well) = 31Q + 4,098",Q = gallons per minute
L. Corrective Action,4. Groundwater Removal/Containment,4.2 French Drain,Racer 1999,"Capital Cost  = 111 L + 56,947",1999,1.025,"Capital Cost  = 114 L + 58,371",L = Length of Drain in Feet
L. Corrective Action,4. Groundwater Removal/Containment,4.2 French Drain,Racer 1999,"O&M Cost  = 6 L + 2,671",1999,1.025,"O&M Cost  = 6 L + 2,738",L = Length of Drain in Feet
L. Corrective Action,4. Groundwater Removal/Containment,4.3 Slurry Wall,Racer 1999,"Capital for 20 feet deep wall = 147 L + 11,451",1999,1.025,"Capital for 20 feet deep wall = 151 L + 11,737",L = Length of Wall in Feet
L. Corrective Action,4. Groundwater Removal/Containment,4.3 Slurry Wall,Racer 1999,"Capital for 50 feet deep wall = 316 L + 30,493",1999,1.025,"Capital for 50 feet deep wall = 324 L + 31,255",L = Length of Wall in Feet
L. Corrective Action,4. Groundwater Removal/Containment,4.3 Slurry Wall,Racer 1999,"Capital for 80 feet deep wall = 587 L + 30,011",1999,1.025,"Capital for 80 feet deep wall = 602 L + 30,761",L = Length of Wall in Feet
L. Corrective Action,4. Groundwater Removal/Containment,4.3 Slurry Wall,Racer 1999,"O&M = 1,500 (L/100)",1999,1.025,"O&M = 1,538 (L/100)",L = Length of Wall in Feet
